Cogmind - Beta 12 X4 @@@ ROGUE MODE // 2023.01.07 @ 18:30:54 Player: youngster Result: Destroyed by P-70 Sage with High-powered Shock Rifle Performance ------------- Evolutions (5) 2500 Regions Visited (19) 3800 Robots Destroyed (227) 1135 Value Destroyed (6696) 6696 Prototype IDs (32) 640 Alien Tech Used (0) 0 Bonus (846) 846 TOTAL SCORE: 15617 Bonus ------- High Alert Combat Kills 688 Follower Combat Kills 48 Entered Garrisons 200 Met Imprinter 300 Friendly Fire -390 Cogmind --------- Core Integrity 0/1000 Matter 300/300 Energy 98/100 System Corruption 1% Temperature Cool (0) Movement Core (50) Location -5/Upper Caves Parts ------- > --- POWER (1) -------- (None) > --- PROPULSION (6) --- (None) > --- UTILITY (7) ------ (None) > --- WEAPON (3) ------- (None) > --- INVENTORY (5) ---- Damper Plating CR-A16's Behemoth Slayer Peak State ------------ > --- POWER ------------ Antimatter Reactor > --- PROPULSION ------- Heavy Treads Heavy Treads Heavy Treads > --- UTILITY ---------- Encrypted Comm Array Improved Propulsion Shielding Damper Plating Hacking Suite > --- WEAPON ----------- Bore Cannon Bore Cannon CR-A16's Behemoth Slayer > --- INVENTORY -------- Micro Fission Core Damper Plating [Rating: 100] Favorites ----------- Power Improved Ion Engine Engine Improved Ion Engine Power Core Reinforced Fission Core Reactor Antimatter Reactor Propulsion Improved Treads Treads Improved Treads Leg Advanced Myomer Leg Wheel Armored Wheel Hover Unit Improved Gravmag System Flight Unit Makeshift Flight Unit Utility Huge Storage Unit Device Seismic Detector Storage Huge Storage Unit Processor Experimental Core Analyzer Hackware Hacking Suite Protection Layered Light Armor Plating Weapon Heavy Assault Rifle Energy Gun Beamcaster Energy Cannon Heavy Particle Cannon Ballistic Gun Heavy Assault Rifle Ballistic Cannon Slug Cannon Launcher Rocket Launcher Special Weapon Plasma Cutter Impact Weapon Great Maul Piercing Weapon CR-A16's Pointy Stick Build | -11 -10 -10 -9 -9 -9 -8 -8 -8 -8 -7 -7 -7 -7 -6 -5 -5 -5 -5 -5 ------- Run | Scr Mat Min Mat Min Exi Min Mat Gar Mat Fac Was Fac Low Zio Pro Fac Was Fac Upp Slots Evolved 10 | . . . 2 . . . 2 . . 2 . . . . . 4 . . . Power . | . . . . . . . . . . . . . . . . . . . . Propulsion 4 | . . . 1 . . . 1 . . . . . . . . 2 . . . Utility 5 | . . . 1 . . . 1 . . 1 . . . . . 2 . . . Weapon 1 | . . . . . . . . . . 1 . . . . . . . . . Parts Attached 350 | 7 21 8 45 5 28 15 70 27 58 19 7 8 2 9 . 6 12 3 . Power 15 | 1 1 . 3 . 2 . 1 . 2 . 1 1 . 1 . 1 1 . . Engine 10 | 1 1 . 3 . 1 . 1 . 2 . . 1 . . . . . . . Core 3 | . . . . . 1 . . . . . . . . 1 . 1 . . . Reactor 2 | . . . . . . . . . . . 1 . . . . . 1 . . Propulsion 91 | 2 6 . 16 . 8 3 20 3 17 4 1 3 1 2 . 1 4 . . Treads 59 | 2 6 . 11 . 4 2 14 1 10 3 1 1 . . . . 4 . . Leg 6 | . . . . . 1 . 3 1 1 . . . . . . . . . . Wheel 23 | . . . 5 . 3 1 3 1 6 1 . 2 1 . . . . . . Hover 1 | . . . . . . . . . . . . . . . . 1 . . . Flight 2 | . . . . . . . . . . . . . . 2 . . . . . Utility 128 | 2 6 3 13 1 10 5 25 7 22 12 3 3 1 5 . 3 5 2 . Device 75 | 1 2 3 2 1 4 2 16 6 17 11 2 1 . 3 . 1 2 1 . Storage 10 | 1 1 . 1 . 3 . . . . . . 1 . . . 2 . 1 . Processor 3 | . . . . . . . 1 . 1 . 1 . . . . . . . . Hackware 3 | . . . . . . . . . . . . 1 . 2 . . . . . Protection 37 | . 3 . 10 . 3 3 8 1 4 1 . . 1 . . . 3 . . Artifact . | . . . . . . . . . . . . . . . . . . . . Weapon 116 | 2 8 5 13 4 8 7 24 17 17 3 2 1 . 1 . 1 2 1 . Energy Gun 9 | 1 2 . 3 2 . . . . . . . . . . . . . 1 . Energy Cannon 8 | . . . . . . . 4 4 . . . . . . . . . . . Ballistic Gun 62 | 1 5 2 7 . 6 4 17 5 11 2 2 . . . . . . . . Ballistic Cannon 3 | . . 1 . . . . . . . . . . . . . . 2 . . Launcher 25 | . 1 2 3 2 1 3 3 3 6 . . 1 . . . . . . . Special Weapon 1 | . . . . . 1 . . . . . . . . . . . . . . Impact Weapon 7 | . . . . . . . . 5 . 1 . . . . . 1 . . . Slashing Weapon . | . . . . . . . . . . . . . . . . . . . . Piercing Weapon 1 | . . . . . . . . . . . . . . 1 . . . . . Special Melee Weapon . | . . . . . . . . . . . . . . . . . . . . Unidentified Prototypes 14 | . . 1 2 . 6 . . . 1 . . 1 . 1 . 1 1 . . Parts Lost 51 | . 4 . 4 . 5 1 7 5 2 1 3 . 3 . 3 4 . 8 1 Power 6 | . 1 . 1 . 1 . 1 . 1 . . . . . 1 . . . . Propulsion 21 | . . . 1 . 3 1 5 2 . 1 2 . . . 1 2 . 3 . Utility 11 | . . . . . . . . 1 . . . . 2 . 1 2 . 4 1 Weapon 13 | . 3 . 2 . 1 . 1 2 1 . 1 . 1 . . . . 1 . Highest Loss Streak 4 | . 2 . 1 . 2 1 4 3 1 1 3 . 2 . 3 4 . 4 1 To Critical Strikes 5 | . . . . . 5 . . . . . . . . . . . . . . Average Slot Usage (%) 90 | . 98 100 98 100 95 100 98 97 99 89 63 37 22 20 58 42 48 46 7 Engine 7 | . 13 14 10 11 10 . 1 9 8 7 3 3 . . . . . . . Core 2 | . . . . . . 11 7 . . . . . . 1 6 2 . . . Treads 23 | . 27 28 28 33 25 26 29 30 18 16 12 5 . . . . 13 13 . Leg 2 | . . . . . 4 . 4 1 9 6 . . . . . . . . . Wheel 2 | . . . 3 . 2 6 1 2 8 6 4 6 4 . . . . . . Device 8 | . 2 13 2 10 6 10 11 8 8 14 11 10 . 7 13 4 5 4 3 Storage 9 | . 14 14 11 11 10 11 9 9 9 7 4 2 5 . . 3 . 1 . Processor 2 | . . . . . . . 1 9 9 7 6 . . . . . . . . Protection 9 | . 11 . 19 11 12 11 13 9 9 . . . 4 . . . 7 3 . Energy Gun 1 | . 7 . 5 1 . . . . . 6 5 . . . . . . . . Energy Cannon 1 | . . . . . . . 6 3 . . . . . . . . . . . Ballistic Gun 13 | . 20 14 15 11 16 21 10 9 17 13 10 . . . . . . . . Launcher 2 | . . 8 . 9 5 . . 1 . . . . 4 . . . . . . Naked Turns 78 | . . . . . . . . . . . 4 . 38 9 . . . . 27 Heaviest Build 161 | 14 30 34 111 106 119 123 130 105 108 103 112 99 129 10 10 18 83 161 3 Greatest Support 210 | 40 46 46 66 66 66 63 92 86 65 65 12 28 12 12 12 10 210 210 3 Greatest Overweight (x) 27 | . . . 6 1 7 7 10 8 8 8 9 8 27 1 . 4 1 1 . Average Overweight (x) 2 | . . . 2 1 1 4 2 2 7 7 3 1 5 . . . . . . Largest Inventory Capacity 25 | 8 15 15 25 25 25 25 25 25 25 25 25 25 25 5 5 8 5 25 5 Average Capacity 20 | 7 14 15 22 25 19 25 25 25 25 25 19 11 21 5 5 7 5 9 5 Most Carried 25 | 4 15 15 25 25 25 25 25 25 25 25 25 13 9 5 5 6 5 5 5 Average Carried 19 | 2 11 14 21 24 16 24 24 24 24 23 19 7 8 5 5 5 4 5 5 Final Capacity 25 | 8 15 15 25 25 25 25 25 25 25 25 5 25 5 5 5 5 5 5 5 Final Carried 25 | 4 15 15 25 25 25 23 25 25 25 25 5 12 5 5 5 5 5 5 5 Scrap Engine Consumption 22 | . . . . . . . . . . 17 5 . . . . . . . . Constructs Created 2 | . . . . . . . . . . 1 1 . . . . . . . . Class Distribution -------------------- 59% | Mutant 36% | Scavenger-Mutant Dominant Class ---------------- Mutant | -10/Materials Mutant | -10/Mines Mutant | -9/Materials Mutant | -9/Mines Mutant | -9/Exiles Scavenger-Mutant | -8/Mines Mutant | -8/Materials Scavenger-Mutant | -8/Garrison Scavenger-Mutant | -8/Materials Mutant | -7/Factory Scavenger-Gunner | -7/Waste Mutant | -7/Factory Mutant | -7/Lower Caves Mutant | -6/Zion Hacker-Mutant | -5/Proximity Caves Hacker-Mutant | -5/Factory Scavenger-Mutant | -5/Waste Scavenger-Mutant | -5/Factory Mutant | -5/Upper Caves Resources | -11 -10 -10 -9 -9 -9 -8 -8 -8 -8 -7 -7 -7 -7 -6 -5 -5 -5 -5 -5 ----------- Run | Scr Mat Min Mat Min Exi Min Mat Gar Mat Fac Was Fac Low Zio Pro Fac Was Fac Upp Matter Collected 8532 | 272 569 141 776 150 1244 441 1427 404 1679 197 240 201 94 254 8 40 120 216 59 Remotely 68 | . . . . . . . . . . 68 . . . . . . . . . Salvage Created 9571 | 69 854 123 1163 72 635 510 2012 454 1700 464 884 . . 24 . 75 . 482 50 Parts 575 | 9 52 6 66 10 84 35 120 35 96 24 20 . . 2 . 4 . 12 . Haulers Intercepted 12 | . 2 . 2 . . . 4 . 3 . . . . . . . . 1 . Recyclers Shooed 6 | 1 1 . . . . 1 3 . . . . . . . . . . . . Parts Field Recycled . | . . . . . . . . . . . . . . . . . . . . Retrieved Matter . | . . . . . . . . . . . . . . . . . . . . Parts Self-Destructed 12 | . . . . . . . . . . . . . 1 3 7 . . . 1 Prevented 2 | . . . . . . . . . . . . . . . 2 . . . . Kills | -11 -10 -10 -9 -9 -9 -8 -8 -8 -8 -7 -7 -7 -7 -6 -5 -5 -5 -5 -5 ------- Run | Scr Mat Min Mat Min Exi Min Mat Gar Mat Fac Was Fac Low Zio Pro Fac Was Fac Upp Combat Hostiles Destroyed 174 | . 20 . 25 9 5 12 32 19 32 9 3 . . . . 1 . 7 . Guns 93 | . 17 . 24 1 1 4 13 1 21 7 3 . . . . . . 1 . Cannons 25 | . . . . . . . 13 6 . . . . . . . . . 6 . AOE 54 | . 3 . 1 8 4 8 6 12 10 2 . . . . . . . . . Classes Destroyed 22 | 1 5 . 2 . 3 2 5 . . 1 1 . . . . 1 . . 1 Worker 7 | . 2 . . . . 2 2 . 1 . . . . . . . . . . Builder 3 | . . . . . . 1 2 . . . . . . . . . . . . Tunneler 8 | 4 1 . . . . 2 . . 1 . . . . . . . . . . Hauler 12 | . 2 . 2 . . . 4 . 3 . . . . . . . . 1 . Recycler 8 | . . . . . . 2 4 . 2 . . . . . . . . . . Operator 2 | . 1 . 1 . . . . . . . . . . . . . . . . Turret 1 | . . . . . 1 . . . . . . . . . . . . . . Watcher 4 | . . . . . . . 3 . 1 . . . . . . . . . . Swarmer 40 | . 6 . 2 7 . 6 . 10 8 . . . . . . . . 1 . Cutter 2 | . . . . . . . 2 . . . . . . . . . . . . Grunt 88 | . 14 . 17 2 . 5 16 6 15 7 . . . . . . . 6 . Duelist 3 | . . . 1 . . 1 1 . . . . . . . . . . . . Sentry 25 | . . . 5 . . . 9 3 8 . . . . . . . . . . Specialist 1 | . . . . . . . 1 . . . . . . . . . . . . Hunter 3 | . . . . . . . 2 . 1 . . . . . . . . . . Programmer 2 | . . . . . . . . . . 2 . . . . . . . . . Heavy 1 | . . . . . . . 1 . . . . . . . . . . . . Behemoth 1 | . . . . . . . . . . . . . . . . 1 . . . Compactor 3 | . . . . . . . . . . . 3 . . . . . . . . Zionite 8 | . . . . . 8 . . . . . . . . . . . . . . Samaritan 1 | . . . . . . . . . . . . . . . . . . . 1 Assembled 4 | . . . . . 4 . . . . . . . . . . . . . . Thug 2 | . . 2 . . . . . . . . . . . . . . . . . Best Kill Streak 6 | 4 5 . 4 4 5 5 4 4 6 5 2 . . . . 1 . 4 . Combat Bots Only 5 | . 4 . 4 4 4 3 3 4 5 5 2 . . . . 1 . 4 . Max Kills in Single Turn 4 | 2 2 1 1 3 3 3 3 3 4 2 1 . . . . 1 . 1 1 Gunslinging . | . . . . . . . . . . . . . . . . . . . . Exploded 3 | . 2 . 1 3 3 2 1 3 3 2 . . . . . . . . . Melee . | . . . . . . . . . . . . . . . . . . . . Uniques/NPCs Destroyed 4 | . . . . . 4 . . . . . . . . . . . . . . 8R-AWN (-9/Exiles) EX-BIN (-9/Exiles) EX-HEX (-9/Exiles) EX-DEC (-9/Exiles) Combat | -11 -10 -10 -9 -9 -9 -8 -8 -8 -8 -7 -7 -7 -7 -6 -5 -5 -5 -5 -5 -------- Run | Scr Mat Min Mat Min Exi Min Mat Gar Mat Fac Was Fac Low Zio Pro Fac Was Fac Upp Damage Taken 14118 | . 880 . 1707 96 1338 369 2605 969 1384 275 208 39 622 . 281 481 . 2567 297 Core 2178 | . 138 . 157 . 158 33 205 119 153 17 16 . 67 . 111 263 . 484 257 Absorbed by Shields 328 | . . . . . . . . . 316 12 . . . . . . . . . Reduced by Siege Mode 20 | . . . . . . . . . . . . . . . . . . 20 . Redirected to Shielding 78 | . 28 . . . . . . . . . . . . . . . . 50 . Regen/Repaired (Parts) 1256 | . 195 . 19 . . . 205 . 781 . 51 . . 5 . . . . . Core Remaining (%) 47 | 100 . 44 . . . 13 . . 13 . . . . . 69 . . . . Volleys Fired 697 | 6 85 13 104 9 98 34 133 22 108 18 27 . 5 . . . . 35 . Largest 3 | 2 2 1 2 2 2 2 2 2 2 3 3 . 1 . . . . 2 . Hottest 225 | 60 60 48 98 98 60 53 105 103 46 103 108 . 33 . . . . 225 . Shots Fired 1285 | 12 169 13 204 11 190 47 226 36 203 50 72 . 6 . . . . 46 . Gun 1081 | 12 169 9 202 4 181 39 135 16 191 50 72 . . . . . . 1 . Cannon 145 | . . 4 . . . . 84 12 . . . . . . . . . 45 . Launcher 55 | . . . 2 7 5 8 7 8 12 . . . 6 . . . . . . Special 4 | . . . . . 4 . . . . . . . . . . . . . . Kinetic 976 | 6 117 13 152 2 181 39 135 16 191 33 46 . . . . . . 45 . Thermal 153 | . . . 50 2 4 . 84 12 . . . . . . . . . 1 . Explosive 55 | . . . 2 7 5 8 7 8 12 . . . 6 . . . . . . Electromagnetic 101 | 6 52 . . . . . . . . 17 26 . . . . . . . . Robot Hit Streak 24 | 3 11 5 16 7 18 11 12 9 24 8 12 . 3 . . . . 4 . Robot Miss Streak 7 | 2 4 2 4 . 5 5 7 3 4 1 2 . 2 . . . . 6 . Penetration Max 2 | . . . . . 2 2 2 . . . . . . . . . . 1 . Secondary Targets 8 | . 4 . 1 . . . . . . 2 1 . . . . . . . . Max Gunslinging Chain 1 | . 1 . 1 . . . . . . 1 1 . . . . . . . . Shots Hit Robots 827 | 7 104 7 137 6 113 19 137 22 146 34 59 . 3 1 . 7 . 22 3 Core Hits 475 | 3 43 6 45 11 66 28 112 29 78 20 18 . 1 1 . 1 . 12 1 Critical Kills 27 | . . . 1 . 8 4 5 . . . 3 . . . . . . 6 . Critical Parts Destroyed 34 | . 2 . . . 16 1 5 . 3 . 1 . . . . 1 . 5 . Critical Strikes 76 | . 4 . 8 . 24 5 10 . 3 . 9 . . . . 2 . 11 . Burn 7 | . . . 7 . . . . . . . . . . . . . . . . Destroy 63 | . 2 . 1 . 24 5 10 . 1 . 9 . . . . . . 11 . Corrupt 2 | . 2 . . . . . . . . . . . . . . . . . . Smash 3 | . . . . . . . . . 2 . . . . . . 1 . . . Impale 1 | . . . . . . . . . . . . . . . . 1 . . . Melee Attacks 27 | . . . . . . . . 5 2 1 . . . 3 1 7 . 5 3 Impact 11 | . . . . . . . . 5 2 1 . . . . . 3 . . . Slashing . | . . . . . . . . . . . . . . . . . . . . Piercing 16 | . . . . . . . . . . . . . . 3 1 4 . 5 3 Sneak Attacks 5 | . . . . . . . . . . . . . . . . 1 . 1 3 Combat Hostiles . | . . . . . . . . . . . . . . . . . . . . Follow-up Attacks 2 | . . . . . . . . . . . . . . . . 2 . . . Damage Inflicted 18965 | 189 1281 188 2304 791 2398 1234 3527 1363 3021 661 694 . 72 66 . 308 . 648 220 Guns 11126 | 87 1147 131 2166 77 2007 392 1591 109 2085 586 694 . . . . . . 54 . Cannons 1901 | . . . . . . . 1175 225 . . . . . . . . . 501 . Explosions 4766 | 102 121 . 100 688 261 819 737 915 876 75 . . 72 . . . . . . Melee 823 | . . . . . . . . 114 60 . . . . 66 . 308 . 55 220 Ramming 307 | . 13 57 38 26 88 23 24 . . . . . . . . . . 38 . Kinetic 9997 | 20 697 131 1323 29 2007 392 1591 109 2085 453 659 . . . . . . 501 . Thermal 2757 | 102 121 . 843 120 42 . 1175 225 . 75 . . . . . . . 54 . Explosive 4396 | . . . 100 616 261 819 737 915 876 . . . 72 . . . . . . Electromagnetic 685 | 67 450 . . . . . . . . 133 35 . . . . . . . . Impact 386 | . . . . . . . . 114 60 . . . . . . 212 . . . Slashing . | . . . . . . . . . . . . . . . . . . . . Piercing 437 | . . . . . . . . . . . . . . 66 . 96 . 55 220 Highest Corruption 25 | . . . . . . . 1 . . 4 24 25 25 25 . . . 1 1 Average Corruption 10 | . . . . . . . 1 . . 2 14 24 25 25 . . . 1 1 Corruption Purged 6 | . . . . . . . 1 . . 5 . . . . . . . . . Corruption Blocked . | . . . . . . . . . . . . . . . . . . . . Effects 49 | . . . . . . . 6 . . 2 11 17 11 2 . . . . . Message Errors 11 | . . . . . . . 3 . . . 3 3 2 . . . . . . Matter Fused 13 | . . . . . . . 1 . . . 1 6 4 1 . . . . . Heat Flow Errors 3 | . . . . . . . . . . 1 1 1 . . . . . . . Energy Discharges 4 | . . . . . . . . . . . . 2 2 . . . . . . Parts Rejected 1 | . . . . . . . . . . . . . 1 . . . . . . Data Loss (minor) 7 | . . . . . . . 1 . . . 1 4 1 . . . . . . Data Loss (major) 2 | . . . . . . . . . . 1 1 . . . . . . . . Misfires 1 | . . . . . . . . . . . . . 1 . . . . . . Alerts 4 | . . . . . . . 1 . . . 1 1 . 1 . . . . . Misdirections 1 | . . . . . . . . . . . 1 . . . . . . . . Weapon Failures 2 | . . . . . . . . . . . 2 . . . . . . . . Overload Shots 1 | . . . . . . . . . . . . . . . . . . 1 . Overflow Damage 373 | 19 . . . 3 37 . 41 16 88 . . . 3 . . 70 . . 96 Projectiles 3 | . . . . . . . 3 . . . . . . . . . . . . Explosions 144 | 19 . . . 3 37 . 38 16 28 . . . 3 . . . . . . Melee 226 | . . . . . . . . . 60 . . . . . . 70 . . 96 Knockbacks 8 | . . . 1 1 . . . 2 . . . . . . . . . 4 . Impact 4 | . . . 1 1 . . . 2 . . . . . . . . . . . Kinetic 4 | . . . . . . . . . . . . . . . . . . 4 . Secondary . | . . . . . . . . . . . . . . . . . . . . Self-Inflicted Damage 427 | . . . . . 11 48 105 119 78 . . . 49 . . . . 17 . Shots 13 | . . . . . 1 1 3 4 3 . . . 1 . . . . . . Rammed 71 | . 3 17 9 1 29 1 4 . . . . . . . . . . 7 . Targets Rammed 76 | . 5 18 9 1 30 1 5 . . . . . . . . . . 7 . Kicked . | . . . . . . . . . . . . . . . . . . . . Crushed 5 | . 2 1 . . 1 . 1 . . . . . . . . . . . . Highest Temperature 406 | 20 103 16 406 102 60 141 352 352 72 361 262 188 41 . . . . 352 . Average Temperature 74 | 14 37 8 111 44 18 42 81 114 12 62 83 103 23 . . . . 159 . Received Heat Transfer 3985 | . 393 . 648 30 . 81 594 396 685 74 . . 117 . 18 72 . 850 27 Effects 11 | . . . 3 . . . 2 . . 1 . . . . . . . 5 . Shutdowns 1 | . . . . . . . . . . 1 . . . . . . . . . Energy Bleed 4 | . . . . . . . 1 . . . . . . . . . . 3 . Interference 1 | . . . . . . . 1 . . . . . . . . . . . . Short Circuit 2 | . . . 1 . . . . . . . . . . . . . . 1 . Damage (minor) 3 | . . . 2 . . . . . . . . . . . . . . 1 . Siege Activations 2 | . . . . . . . . . . . . . . . . . . 2 . Total Turns 39 | . . . . . . . . . . . . . . . . . . 39 . Longest Duration 23 | . . . . . . . . . . . . . . . . . . 23 . Robots Corrupted . | . . . . . . . . . . . . . . . . . . . . Combat Hostiles . | . . . . . . . . . . . . . . . . . . . . Parts Fried 3 | . . . . . . . 1 . 1 . . . . . . . . 1 . Impact Corruptions 3 | . . . . . . . . . 2 . . . . . . 1 . . . Robots Melted . | . . . . . . . . . . . . . . . . . . . . Combat Hostiles . | . . . . . . . . . . . . . . . . . . . . Parts Melted 11 | . . . 8 . . . 3 . . . . . . . . . . . . Heat Transferred 4930 | 150 300 . 1998 224 36 . 1739 333 . 100 . . . . . . . 50 . Parts Sabotaged . | . . . . . . . . . . . . . . . . . . . . Parts Stolen 4 | . . . . . . . . . . . . . 4 . . . . . . Parts Stripped . | . . . . . . . . . . . . . . . . . . . . Power Chain Reactions 5 | 1 2 . . . . . . . . 1 . . . . . . . 1 . Missiles Intercepted . | . . . . . . . . . . . . . . . . . . . . Alert | -11 -10 -10 -9 -9 -9 -8 -8 -8 -8 -7 -7 -7 -7 -6 -5 -5 -5 -5 -5 ------- Run | Scr Mat Min Mat Min Exi Min Mat Gar Mat Fac Was Fac Low Zio Pro Fac Was Fac Upp Peak Influence 1105 | 20 384 109 362 293 . 276 642 1105 760 557 95 79 . . . 58 16 481 . Initial 538 | . 13 109 . 138 . . 15 417 538 336 95 45 . . . 37 16 11 . Average 284 | 10 218 23 164 188 . 132 300 825 471 371 86 58 . . . 52 16 186 . Maximum Alert Level 4 | . 1 . 1 1 . 1 2 4 3 2 . . . . . . . 2 . Low Security (%) 40 | 100 40 100 72 55 . 79 13 . . . 100 100 . . . 100 100 70 . Level 1 36 | . 59 . 27 44 . 20 65 . 32 84 . . . . . . . 21 . Level 2 16 | . . . . . . . 21 33 58 15 . . . . . . . 7 . Level 3 6 | . . . . . . . . 62 8 . . . . . . . . . . Level 4 . | . . . . . . . . 3 . . . . . . . . . . . Level 5 . | . . . . . . . . . . . . . . . . . . . . High Security . | . . . . . . . . . . . . . . . . . . . . Max Security . | . . . . . . . . . . . . . . . . . . . . Squads Dispatched 35 | . 6 . 5 . . . 4 . 4 4 . 3 . . . 1 . 8 . Investigation 16 | . 3 . 2 . . . . . 2 2 . 2 . . . . . 5 . Extermination 4 | . . . . . . . . . . 2 . 1 . . . . . 1 . Reinforcement 14 | . 3 . 3 . . . 4 . 1 . . . . . . 1 . 2 . Assault . | . . . . . . . . . . . . . . . . . . . . Garrison 1 | . . . . . . . . . 1 . . . . . . . . . . Intercept . | . . . . . . . . . . . . . . . . . . . . Searches Triggered . | . . . . . . . . . . . . . . . . . . . . Construction Impeded . | . . . . . . . . . . . . . . . . . . . . Haulers Reinforced . | . . . . . . . . . . . . . . . . . . . . Active Scanning Responses . | . . . . . . . . . . . . . . . . . . . . Cargo Convoy Interrupts . | . . . . . . . . . . . . . . . . . . . . Stealth | -11 -10 -10 -9 -9 -9 -8 -8 -8 -8 -7 -7 -7 -7 -6 -5 -5 -5 -5 -5 --------- Run | Scr Mat Min Mat Min Exi Min Mat Gar Mat Fac Was Fac Low Zio Pro Fac Was Fac Upp Distress Signals 17 | . 1 4 4 . . . 2 . 2 . . . . . . . . 4 . Communications Jammed . | . . . . . . . . . . . . . . . . . . . . Distress Signals . | . . . . . . . . . . . . . . . . . . . . Times Spotted 334 | . 42 . 47 10 20 17 49 22 48 11 7 . 7 . 11 1 . 38 4 Peak Tracking Total 13 | . 6 . 7 4 9 4 4 4 4 5 3 1 3 . 9 2 . 13 3 Tactical Retreats 20 | . 3 . 2 . 2 1 1 4 1 . 1 . . . 1 . . 4 . Traps | -11 -10 -10 -9 -9 -9 -8 -8 -8 -8 -7 -7 -7 -7 -6 -5 -5 -5 -5 -5 ------- Run | Scr Mat Min Mat Min Exi Min Mat Gar Mat Fac Was Fac Low Zio Pro Fac Was Fac Upp Traps Triggered 7 | . . . . . . . . 1 1 1 . 2 . . . 1 . 1 . Indirectly . | . . . . . . . . . . . . . . . . . . . . Trap Hack Attempts . | . . . . . . . . . . . . . . . . . . . . Triggered . | . . . . . . . . . . . . . . . . . . . . Disarmed 6 | . . . . . . . 6 . . . . . . . . . . . . Reprogrammed . | . . . . . . . . . . . . . . . . . . . . Reused . | . . . . . . . . . . . . . . . . . . . . Traps Extracted . | . . . . . . . . . . . . . . . . . . . . Installed . | . . . . . . . . . . . . . . . . . . . . Triggered . | . . . . . . . . . . . . . . . . . . . . Exploded 3 | . . . . . 3 . . . . . . . . . . . . . . Machines | -11 -10 -10 -9 -9 -9 -8 -8 -8 -8 -7 -7 -7 -7 -6 -5 -5 -5 -5 -5 ---------- Run | Scr Mat Min Mat Min Exi Min Mat Gar Mat Fac Was Fac Low Zio Pro Fac Was Fac Upp Machines Disabled 34 | . 2 . 1 6 14 . 6 . 1 2 . . . 1 . . . 1 . Max in Single Turn 4 | . 1 . 1 4 2 . 1 . 1 1 . . . 1 . . . 1 . Garrison Access 1 | . . . . . . . . . . . . . . . . 1 . . . Machines Sabotaged . | . . . . . . . . . . . . . . . . . . . . Overloaded Fab Kills 2 | . . . . . . . . . . . . . . . . . . 2 . Hacking | -11 -10 -10 -9 -9 -9 -8 -8 -8 -8 -7 -7 -7 -7 -6 -5 -5 -5 -5 -5 --------- Run | Scr Mat Min Mat Min Exi Min Mat Gar Mat Fac Was Fac Low Zio Pro Fac Was Fac Upp Machines Accessed 67 | . 7 1 8 . 1 . 14 4 11 5 . 5 . . . 4 . 7 . Terminals 40 | . 4 . 5 . . . 9 4 7 3 . 3 . . . . . 5 . Fabricators 5 | . . . . . . . . . . 1 . 1 . . . 1 . 2 . Repair Stations 8 | . 1 . 1 . . . 2 . 2 1 . . . . . 1 . . . Recycling Units 2 | . 2 . . . . . . . . . . . . . . . . . . Scanalyzers 8 | . . . 2 . . . 2 . 2 . . 1 . . . 1 . . . Garrison Access 2 | . . . . . . . 1 . . . . . . . . 1 . . . Total Hacks 221 | . 22 1 36 . 1 . 57 5 46 16 . 13 . . . 8 . 16 . Successful 130 | . 15 1 16 . 1 . 36 4 33 6 . 6 . . . 3 . 9 . Failed 91 | . 7 . 20 . . . 21 1 13 10 . 7 . . . 5 . 7 . Catastrophic 11 | . 2 . 2 . . . 1 . 1 3 . . . . . 1 . 1 . Database Lockouts . | . . . . . . . . . . . . . . . . . . . . Manual 80 | . 10 . 17 . 1 . 23 . 15 3 . 4 . 1 . 1 . 5 . Terminals 131 | . 13 . 24 . . . 37 5 24 9 . 7 . . . . . 12 . Fabricators 13 | . . . . . . . . . . 3 . 3 . . . 3 . 4 . Repair Stations 39 | . 7 . 4 . . . 10 . 13 4 . . . . . 1 . . . Recycling Units 2 | . 2 . . . . . . . . . . . . . . . . . . Scanalyzers 30 | . . . 8 . . . 9 . 9 . . 3 . . . 1 . . . Garrison Access 4 | . . . . . . . 1 . . . . . . . . 3 . . . Terminal Hacks 48 | . 4 1 5 . 1 . 14 4 10 3 . 1 . . . . . 5 . Record 1 | . . . . . 1 . . . . . . . . . . . . . . Part Schematic 4 | . . . 1 . . . . . . 1 . . . . . . . 2 . Robot Analysis 2 | . . . 1 . . . . . . . . . . . . . . 1 . Prototype ID Bank 7 | . . . 1 . . . 4 . 2 . . . . . . . . . . Open Door 2 | . . 1 . . . . . 1 . . . . . . . . . . . Branch Access Points 4 | . . . . . . . 1 . . 1 . 1 . . . . . 1 . Emergency Access Points 2 | . . . . . . . . 1 1 . . . . . . . . . . Alert Level 2 | . . . . . . . 1 . 1 . . . . . . . . . . Unreport Threat 2 | . . . . . . . . . 2 . . . . . . . . . . Locate Traps 12 | . 3 . 2 . . . 4 . 2 . . . . . . . . 1 . Disarm Traps 1 | . . . . . . . 1 . . . . . . . . . . . . Hauler Manifests 2 | . . . . . . . 1 . 1 . . . . . . . . . . Zone Layout 5 | . 1 . . . . . 2 . 1 1 . . . . . . . . . Garrison Registry 1 | . . . . . . . . 1 . . . . . . . . . . . Security Stations 1 | . . . . . . . . 1 . . . . . . . . . . . Fabricator Hacks 6 | . . . . . . . . . . 1 . 1 . . . 1 . 3 . Network Status 3 | . . . . . . . . . . 1 . . . . . 1 . 1 . Load Schematic 2 | . . . . . . . . . . . . 1 . . . . . 1 . Build 1 | . . . . . . . . . . . . . . . . . . 1 . Repair Station Hacks 26 | . 6 . 2 . . . 7 . 10 1 . . . . . . . . . Scan Component 14 | . 3 . 1 . . . 4 . 5 1 . . . . . . . . . Repair 12 | . 3 . 1 . . . 3 . 5 . . . . . . . . . . Recycling Unit Hacks . | . . . . . . . . . . . . . . . . . . . . Scanalyzer 23 | . . . 6 . . . 7 . 8 . . 2 . . . . . . . Insert Component 12 | . . . 3 . . . 4 . 4 . . 1 . . . . . . . Analyze 11 | . . . 3 . . . 3 . 4 . . 1 . . . . . . . Garrison Access Hacks 2 | . . . . . . . 1 . . . . . . . . 1 . . . Unlock Access 1 | . . . . . . . 1 . . . . . . . . . . . . Seal Access 1 | . . . . . . . . . . . . . . . . 1 . . . Unauthorized Hacks 25 | . 5 . 3 . . . 7 . 5 1 . 2 . . . 1 . 1 . Terminals 20 | . 3 . 3 . . . 7 . 5 1 . 1 . . . . . . . Assimilate 2 | . 1 . . . . . 1 . . . . . . . . . . . . Botnet 14 | . 1 . 2 . . . 5 . 4 1 . 1 . . . . . . . Operators 4 | . 1 . 1 . . . 1 . 1 . . . . . . . . . . Fabricators 2 | . . . . . . . . . . . . 1 . . . . . 1 . Overload 1 | . . . . . . . . . . . . . . . . . . 1 . Recompile 1 | . . . . . . . . . . . . 1 . . . . . . . Repair Stations . | . . . . . . . . . . . . . . . . . . . . Recycling Units 2 | . 2 . . . . . . . . . . . . . . . . . . Tunnel 2 | . 2 . . . . . . . . . . . . . . . . . . Scanalyzers 1 | . . . . . . . . . . . . . . . . 1 . . . Researchers 1 | . . . . . . . . . . . . . . . . 1 . . . Garrison Access . | . . . . . . . . . . . . . . . . . . . . Data Cores Recovered . | . . . . . . . . . . . . . . . . . . . . Used . | . . . . . . . . . . . . . . . . . . . . Hacking Detections 55 | . 5 . 8 . . . 12 3 11 5 . 3 . . . 2 . 6 . Full Trace Events 10 | . 1 . 2 . . . . . 1 2 . 1 . . . . . 3 . Feedback Events 1 | . . . . . . . . . . . . . . . . . . 1 . Corruption 1 | . . . . . . . . . . . . . . . . . . 1 . Feedback Blocked . | . . . . . . . . . . . . . . . . . . . . Robot Schematics Acquired 2 | . . . . . . . . . . . . . . 2 . . . . . Robots Built . | . . . . . . . . . . . . . . . . . . . . Authchips . | . . . . . . . . . . . . . . . . . . . . Time . | . . . . . . . . . . . . . . . . . . . . Total Robot Build Rating . | . . . . . . . . . . . . . . . . . . . . Part Schematics Acquired 28 | . . . 4 . . . 3 . 2 1 . 1 . 15 . . . 2 . Parts Built 1 | . . . . . . . . . . . . . . . . . . 1 . Authchips . | . . . . . . . . . . . . . . . . . . . . Time 51 | . . . . . . . . . . . . . . . . . . 51 . Total Part Build Rating 1 | . . . . . . . . . . . . . . . . . . 1 . Parts Repaired 12 | . 3 . 1 . . . 3 . 5 . . . . . . . . . . Time 407 | . 84 . 32 . . . 101 . 190 . . . . . . . . . . Parts Recycled . | . . . . . . . . . . . . . . . . . . . . Recycled Matter . | . . . . . . . . . . . . . . . . . . . . Retrieved Matter . | . . . . . . . . . . . . . . . . . . . . Retrieved Components . | . . . . . . . . . . . . . . . . . . . . Parts Scanalyzed 9 | . . . 3 . . . 4 . 1 . . 1 . . . . . . . Part Schematics Acquired 9 | . . . 3 . . . 3 . 2 . . 1 . . . . . . . Parts Damaged 1 | . . . 1 . . . . . . . . . . . . . . . . Bothacking | -11 -10 -10 -9 -9 -9 -8 -8 -8 -8 -7 -7 -7 -7 -6 -5 -5 -5 -5 -5 ------------ Run | Scr Mat Min Mat Min Exi Min Mat Gar Mat Fac Was Fac Low Zio Pro Fac Was Fac Upp Used RIF Installer . | . . . . . . . . . . . . . . . . . . . . Robots Hacked . | . . . . . . . . . . . . . . . . . . . . Non-combat . | . . . . . . . . . . . . . . . . . . . . Combat . | . . . . . . . . . . . . . . . . . . . . Robot Hacks Applied . | . . . . . . . . . . . . . . . . . . . . Relay Couplers Released . | . . . . . . . . . . . . . . . . . . . . Fabnet Peak Effective % . | . . . . . . . . . . . . . . . . . . . . Robots Rewired 2 | . . . . . . . . 2 . . . . . . . . . . . Allies Hacked . | . . . . . . . . . . . . . . . . . . . . Hacks Repelled . | . . . . . . . . . . . . . . . . . . . . Allies | -11 -10 -10 -9 -9 -9 -8 -8 -8 -8 -7 -7 -7 -7 -6 -5 -5 -5 -5 -5 -------- Run | Scr Mat Min Mat Min Exi Min Mat Gar Mat Fac Was Fac Low Zio Pro Fac Was Fac Upp Total Allies 5 | . 1 . . . . . . 2 . . . . . 2 . . . . . Largest Group 2 | . 1 . . . . . . 2 . . . . . 2 2 . . . . Highest-Rated Group 56 | . 10 . . . . . . 56 . . . . . 45 45 . . . . Highest-Rated Ally 31 | . 10 . . . . . . 31 . . . . . 25 25 . . . . Total Orders 14 | . 5 . . . 9 . . . . . . . . . . . . . . STAY 8 | . 2 . . . 6 . . . . . . . . . . . . . . ROAM 1 | . 1 . . . . . . . . . . . . . . . . . . FOLLOW 5 | . 2 . . . 3 . . . . . . . . . . . . . . Ally Attacks 37 | . . . . . 3 6 . 20 . . . . . 2 6 . . . . Total Damage 972 | . . . . . 34 359 . 286 . . . . . 85 208 . . . . Kills 10 | . . . . . . 4 . 3 . . . . . 1 2 . . . . Allies Corrupted . | . . . . . . . . . . . . . . . . . . . . Allies Melted . | . . . . . . . . . . . . . . . . . . . . Turrets Deployed 1 | . . . . . . 1 . . . . . . . . . . . . . Intel | -11 -10 -10 -9 -9 -9 -8 -8 -8 -8 -7 -7 -7 -7 -6 -5 -5 -5 -5 -5 ------- Run | Scr Mat Min Mat Min Exi Min Mat Gar Mat Fac Was Fac Low Zio Pro Fac Was Fac Upp Robot Analysis Total 2 | . . . 1 . . . . . . . . . . . . . . 1 . Derelict Logs Recovered 7 | . . 1 . 1 . . . . . . . . . 2 3 . . . . Drone Launches 4 | . . . . . 4 . . . . . . . . . . . . . . Drone Recoveries 1 | . . . . . 1 . . . . . . . . . . . . . . Exploration | -11 -10 -10 -9 -9 -9 -8 -8 -8 -8 -7 -7 -7 -7 -6 -5 -5 -5 -5 -5 ------------- Run | Scr Mat Min Mat Min Exi Min Mat Gar Mat Fac Was Fac Low Zio Pro Fac Was Fac Upp Turns Passed 25746 | 116 1930 1924 2173 1341 3382 1509 4687 1674 2877 872 235 352 237 1169 218 231 376 358 85 Spaces Moved 11836 | 56 907 687 782 546 1414 641 1400 592 990 372 92 263 134 1563 403 224 364 257 149 Core 1918 | 3 . . . . . . . . . . 58 25 69 1187 . 32 207 188 149 Treads 5387 | 53 907 687 511 546 1005 233 760 402 9 4 . 44 . . . . 157 69 . Legs 381 | . . . . . . . 381 . . . . . . . . . . . . Wheels 3179 | . . . 271 . 409 408 259 190 981 368 34 194 65 . . . . . . Hover 113 | . . . . . . . . . . . . . . . . 113 . . . Flight 858 | . . . . . . . . . . . . . . 376 403 79 . . . Fastest Speed 42 | 50 160 160 160 240 130 205 190 195 195 195 50 90 50 42 42 50 50 50 50 Average Speed 169 | 154 160 160 203 240 203 217 236 230 209 204 138 127 151 68 43 87 97 82 50 Slowest Speed 1400 | 160 160 160 240 240 240 240 400 246 243 238 225 210 1400 100 55 250 160 240 50 Overloaded Moves . | . . . . . . . . . . . . . . . . . . . . Propulsion Burnouts . | . . . . . . . . . . . . . . . . . . . . Robots Hopped 13 | . . . . . . 11 . . . . . . . . 2 . . . . Cave-ins Triggered . | . . . . . . . . . . . . . . . . . . . . Exploration Rate (%) 58 | 4 100 90 65 98 90 93 96 56 87 13 72 7 22 86 63 9 96 11 16 Regions Visited 19 Branch Regions 8 Pre-discovered Areas 11 | . 2 1 . . 1 . . . . . . . 1 4 2 . . . . Known Exits Taken 3 | . . . . . . . 1 . . . . 1 . . . . . 1 . Unknown Exits Taken 11 | 1 1 1 1 1 1 1 . . 1 . . . 1 1 1 . . . . Scrap Searched 9 | . . 1 . 1 . 2 . . . . . . . 4 1 . . . . Spaces Dug 223 | . . 4 11 25 16 57 25 18 61 1 . . . . 1 . . 4 . Terrain Destroyed 539 | 2 4 4 21 68 43 84 107 46 82 17 4 . 34 . 1 . . 22 . Melee 9 | . . . . . . . . 3 . 1 . . . . 1 . . 4 . Projectile 83 | . . 4 . . 5 4 48 . . . 4 . . . . . . 18 . AOE 444 | 2 4 . 21 68 38 78 58 43 82 16 . . 34 . . . . . . Terrain Rammed . | . . . . . . . . . . . . . . . . . . . . Walls Destroyed . | . . . . . . . . . . . . . . . . . . . . Machines Disabled . | . . . . . . . . . . . . . . . . . . . . Actions | -11 -10 -10 -9 -9 -9 -8 -8 -8 -8 -7 -7 -7 -7 -6 -5 -5 -5 -5 -5 --------- Run | Scr Mat Min Mat Min Exi Min Mat Gar Mat Fac Was Fac Low Zio Pro Fac Was Fac Upp Total 16151 | 72 1223 1491 1156 564 1698 689 2534 854 1611 443 143 279 165 1652 441 248 382 350 156 Wait 2821 | . 171 752 171 . 47 9 868 180 420 21 4 . 14 77 40 6 . 39 2 Move 11792 | 55 906 686 781 545 1413 618 1399 589 989 372 91 262 133 1562 399 224 363 256 149 Hop 12 | . . . . . . 11 . . . . . . . . 1 . . . . Pick Up 170 | 4 23 6 25 2 40 . 28 7 12 5 4 8 3 . . 1 2 . . Fast Attach 79 | 7 2 1 6 . 8 . 5 1 6 1 4 7 2 9 . 6 11 3 . Attach 42 | . 6 . 7 . 7 1 10 4 1 3 1 1 . . . . 1 . . Detach 18 | . 2 . . . 5 . 2 . 1 1 2 . 1 . . 2 . 1 1 Swap 230 | . 13 7 32 5 13 14 55 22 52 15 2 . . . . . . . . Drop 168 | . 10 8 21 2 37 1 29 3 20 6 8 1 7 1 . 4 5 4 1 Fire 697 | 6 85 13 104 9 98 34 133 22 108 18 27 . 5 . . . . 35 . Melee 25 | . . . . . . . . 5 2 1 . . . 3 1 5 . 5 3 Ram 7 | . . . . . . . . . . . . . . . . . . 7 . Kick . | . . . . . . . . . . . . . . . . . . . . Crush 69 | . 5 18 9 1 30 1 5 . . . . . . . . . . . . Escape Stasis . | . . . . . . . . . . . . . . . . . . . . Rewire 21 | . . . . . . . . 21 . . . . . . . . . . . Trap . | . . . . . . . . . . . . . . . . . . . . Miscellaneous . | . . . . . . . . . . . . . . . . . . . . Route ------- -11/Scrapyard -10/Materials (discovered 4 exits: *Mat x3 / *Min) -10/Mines (discovered 2 exits: *Mat x2) -9/Materials (discovered 3 exits: *Mat x2 / [*Min]) -9/Mines (discovered 3 exits: *Mat x2 / *Exi) -9/Exiles (discovered 2 exits: [*Min x2]) -8/Mines -8/Materials (discovered 4 exits: *Fac x3 / Gar) -8/Garrison (discovered 3 exits: *Mat x3) -8/Materials (discovered 2 exits: *Fac x2) -7/Factory (discovered 5 exits: *Fac / Sto x2 / Low x2) -7/Waste -7/Factory (discovered 5 exits: *Fac / Sto x2 / *Low x2) -7/Lower Caves -6/Zion -5/Proximity Caves -5/Factory -5/Waste -5/Factory (discovered 2 exits: *Upp x2) -5/Upper Caves History --------- Turn | Location | Event 29 | -11/Scrapyard | Discovered new exit (range 16) 117 | -11/Scrapyard | Entered Materials 315 | -10/Materials | Build established: Mutant 574 | -10/Materials | Discovered new exit (range 15) 746 | -10/Materials | Repaired Lgt. Treads 903 | -10/Materials | Discovered new exit (range 16) 1210 | -10/Materials | Core integrity fell below 50% 1266 | -10/Materials | Discovered new exit (range 12) 1467 | -10/Materials | Discovered new exit (range 12) 1818 | -10/Materials | Repaired Imp. Treads 1846 | -10/Materials | Repaired Lgt. Treads 2047 | -10/Materials | Entered Mines 2146 | -10/Mines | Learned Materials terminal intel 2360 | -10/Mines | Assembled infested the area 2362 | -10/Mines | A weapon hastily lodged in a ceiling crevice suddenly fell to the ground 3296 | -10/Mines | Discovered new exit (range 5) 3301 | -10/Mines | Joined a pair of Derelicts in attacking an 0b10 outpost 3346 | -10/Mines | Discovered new exit (range 6) 3533 | -10/Mines | Found the Drone Emporium 3541 | -10/Mines | Found Prototype Device 3541 | -10/Mines | Identified Thief Drone Bay 3971 | -10/Mines | Entered Materials 3971 | -9/Materials | Evolved 2 slots: Propulsion x1, Utility x1 3972 | -9/Materials | Loaded intel: 11 terminal locations 4266 | -9/Materials | Repaired Plasma Cutter 4804 | -9/Materials | Discovered new exit (range 10) 5270 | -9/Materials | Discovered new exit (range 4) 5712 | -9/Materials | Discovered new exit (range 13) 6144 | -9/Materials | Entered Mines 6148 | -9/Mines | Discovered new exit (range 10) 6247 | -9/Mines | Learned Materials stockpile data 6381 | -9/Mines | Discovered new exit (range 5) 6450 | -9/Mines | Received a Rocket Launcher from a helpful Derelict 7214 | -9/Mines | Deemed a non-threat by the Exiles lab entrance 7214 | -9/Mines | Discovered new exit (range 5) 7485 | -9/Mines | Entered Exiles 7560 | -9/Exiles | Met 8R-AWN 7610 | -9/Exiles | Discovered new exit (range 15) 7757 | -9/Exiles | Met EX-HEX 7829 | -9/Exiles | Met EX-BIN 7863 | -9/Exiles | Met EX-DEC 7928 | -9/Exiles | Learned location of Zion (-6) 8926 | -9/Exiles | Attacked by the Exiles 9072 | -9/Exiles | Core integrity fell below 50% 9209 | -9/Exiles | Destroyed 8R-AWN 9232 | -9/Exiles | Found Prototype Ballistic Gun 9232 | -9/Exiles | Identified 8R-AWN's Boregun 9236 | -9/Exiles | Found 8R-AWN's Boregun 9602 | -9/Exiles | Destroyed EX-BIN 9609 | -9/Exiles | Destroyed EX-HEX 9659 | -9/Exiles | Destroyed EX-DEC 9705 | -9/Exiles | Found Prototype Processor 9715 | -9/Exiles | Found Deploy-a-Sentry 9751 | -9/Exiles | Build established: Scavenger-Mutant 9810 | -9/Exiles | Found Prototype Device 9810 | -9/Exiles | Identified System Purifier 10108 | -9/Exiles | Found Prototype Protection 10108 | -9/Exiles | Identified 8R-AWN's Armor/EX 10189 | -9/Exiles | Found Prototype Device 10189 | -9/Exiles | Identified AS-neutralizer No. 17b 10195 | -9/Exiles | Found Prototype Processor 10839 | -9/Exiles | Discovered new exit (range 14) 10867 | -9/Exiles | Left Exiles lab with Deploy-a-Sentry 10867 | -9/Exiles | Entered Mines 10933 | -8/Mines | Core integrity fell below 20% 11808 | -8/Mines | DAS Turret deployed 12000 | -8/Mines | Discovered new exit (range 12) 12376 | -8/Mines | Entered Materials 12376 | -8/Materials | Evolved 2 slots: Propulsion x1, Utility x1 13242 | -8/Materials | Discovered new exit (range 16) 13284 | -8/Materials | Repaired Imp. Treads 13880 | -8/Materials | Build established: Mutant 14392 | -8/Materials | Discovered new exit (range 7) 14521 | -8/Materials | Identified Exp. Targeting Computer 14521 | -8/Materials | Identified Exp. Core Analyzer 14896 | -8/Materials | Repaired Rocket Launcher 14920 | -8/Materials | Discovered new exit (range 14) 14950 | -8/Materials | Repaired Corrupted Arm. Treads 16558 | -8/Materials | Lost 4 parts (1p3n) 16616 | -8/Materials | Found Prototype Device 16858 | -8/Materials | Identified exit to Garrison 16868 | -8/Materials | Build established: Scavenger-Mutant 17063 | -8/Materials | Entered Garrison 17097 | -8/Garrison | Discovered new exit (range 46) 17097 | -8/Garrison | Discovered new exit (range 59) 17097 | -8/Garrison | Discovered new exit (range 49) 17138 | -8/Garrison | Learned Materials security intel 17210 | -8/Garrison | Triggered checkpoint 17449 | -8/Garrison | Triggered checkpoint 17674 | -8/Garrison | Triggered checkpoint 17870 | -8/Garrison | Triggered checkpoint 17924 | -8/Garrison | Triggered checkpoint 17998 | -8/Garrison | Triggered checkpoint 18023 | -8/Garrison | Core integrity fell below 50% 18065 | -8/Garrison | Lost 3 parts (1n1u1w) 18321 | -8/Garrison | Attempted to access garrison exit controls, blocked by remote lockdown 18591 | -8/Garrison | Attempted to access garrison exit controls, blocked by remote lockdown 18737 | -8/Garrison | Entered Materials 19037 | -8/Materials | Repaired Arm. Treads 19083 | -8/Materials | Repaired Hrd. Heavy Armor Plating 19422 | -8/Materials | Build established: Mutant 20348 | -8/Materials | Repaired Hardlight Generator 20381 | -8/Materials | Repaired Imp. Treads 20420 | -8/Materials | Repaired Arm. Treads 20740 | -8/Materials | Build established: Scavenger-Mutant 20769 | -8/Materials | Discovered new exit (range 7) 20892 | -8/Materials | Garrison activated, responded to threat 20966 | -8/Materials | Discovered new exit (range 16) 21240 | -8/Materials | Core integrity fell below 20% 21512 | -8/Materials | Identified Active Sensor Suite 21614 | -8/Materials | Entered Factory 21614 | -7/Factory | Evolved 2 slots: Utility x1, Weapon x1 21615 | -7/Factory | Found Scrap Engine 21784 | -7/Factory | Identified exit to Storage 21784 | -7/Factory | Identified exit to Lower Caves 22425 | -7/Factory | Discovered new exit (range 9) 22486 | -7/Factory | Sucked down chute 22486 | -7/Factory | Entered Waste 22501 | -7/Waste | EMP discharged 22501 | -7/Waste | System corruption reached 10% 22502 | -7/Waste | Spotted C-40 Crusher 22520 | -7/Waste | Destroyed C-40 Crusher 22527 | -7/Waste | Destroyed C-40 Crusher 22556 | -7/Waste | Destroyed C-40 Crusher 22583 | -7/Waste | Crushed by Compactor (0 parts destroyed, 1 dropped) 22596 | -7/Waste | Spotted C-40 Crusher 22601 | -7/Waste | EMP discharged 22614 | -7/Waste | Found Damper Plating 22642 | -7/Waste | Spotted C-40 Crusher 22656 | -7/Waste | Crushed by Compactor (1 part destroyed, 1 dropped) 22659 | -7/Waste | Crushed by Compactor (1 part destroyed, 1 dropped) 22663 | -7/Waste | Released all parts (6) 22678 | -7/Waste | Spotted C-40 Crusher 22690 | -7/Waste | Lost 3 parts (2n1w) 22701 | -7/Waste | EMP discharged 22711 | -7/Waste | Discovered new exit (range 11) 22721 | -7/Waste | Entered Factory 22791 | -7/Factory | Discovered new exit (range 15) 22861 | -7/Factory | Identified exit to Factory 22975 | -7/Factory | Build established: Mutant 23073 | -7/Factory | Entered Lower Caves 23073 | -7/Lower Caves | Spotted 1S-148(f) 23073 | -7/Lower Caves | Spotted A4-BL0(f) 23074 | -7/Lower Caves | Encountered a Master Thief 23074 | -7/Lower Caves | Encountered a Master Thief 23078 | -7/Lower Caves | Med. Treads stolen by Master Thief 23082 | -7/Lower Caves | Hvy. Deuterium Engine stolen by Master Thief 23103 | -7/Lower Caves | Met a Warlord Commander 23104 | -7/Lower Caves | Learned location of Warlord (-5) 23111 | -7/Lower Caves | Found Encrypted Comm Array 23139 | -7/Lower Caves | Encountered a Warlord checkpoint 23192 | -7/Lower Caves | Attracted the attention of an 0b10 checkpoint 23272 | -7/Lower Caves | Released all parts (2) 23306 | -7/Lower Caves | A Derelict revealed a hidden shortcut to a safe place 23310 | -7/Lower Caves | Entered Zion 23319 | -6/Zion | Given the Hacking Drone Bay 23319 | -6/Zion | Found Prototype Device 23319 | -6/Zion | Identified Hacking Drone Bay 23356 | -6/Zion | System corruption cleaned by Quarantine Array 23375 | -6/Zion | Discovered new exit (range 10) 23487 | -6/Zion | Received a hallucinogenic algorithm 23517 | -6/Zion | Learned Factory terminal intel 23534 | -6/Zion | Gained Derelict followers 23588 | -6/Zion | Found CR-A16's Pointy Stick 23722 | -6/Zion | Learned 4 Factory zone layouts 23731 | -6/Zion | Learned location of Quarantine (-2) 24479 | -6/Zion | Entered Proximity Caves 24479 | -5/Proximity Caves | Accompanied by 2 allies 24495 | -5/Proximity Caves | Learned Factory terminal intel 24657 | -5/Proximity Caves | Learned location of Armory (-4) 24670 | -5/Proximity Caves | Build established: Hacker-Mutant 24693 | -5/Proximity Caves | Discovered new exit (range 8) 24697 | -5/Proximity Caves | Entered Factory 24697 | -5/Factory | Evolved 4 slots: Propulsion x2, Utility x2 24699 | -5/Factory | Loaded intel: 26 terminal locations 24703 | -5/Factory | Lost 3 parts (1p1n1u) 24862 | -5/Factory | Spotted B-75 Beast 24895 | -5/Factory | Revealed the true nature of CR-A16's Pointy Stick 24900 | -5/Factory | Destroyed B-75 Beast 24926 | -5/Factory | Lost 4 parts (2n2u) 24928 | -5/Factory | Sucked down chute 24928 | -5/Factory | Entered Waste 24928 | -5/Waste | The area was eerily silent 24939 | -5/Waste | Found Prototype Device 24939 | -5/Waste | Identified Exp. ECM Suite 25008 | -5/Waste | Discovered new exit (range 16) 25046 | -5/Waste | Found Damper Plating 25231 | -5/Waste | Found Damper Plating 25304 | -5/Waste | Entered Factory 25305 | -5/Factory | Loaded intel: 26 terminal locations 25309 | -5/Factory | Identified exit to Upper Caves 25351 | -5/Factory | Build established: Scavenger-Mutant 25394 | -5/Factory | Fabricated Huge Storage Unit (x1) 25633 | -5/Factory | Core integrity fell below 50% 25662 | -5/Factory | Entered Upper Caves 25678 | -5/Upper Caves | Lost 4 parts (2n2u) 25716 | -5/Upper Caves | Attracted the attention of an 0b10 checkpoint 25724 | -5/Upper Caves | Core integrity fell below 20% 25747 | -5/Upper Caves | Destroyed by P-70 Sage with High-powered Shock Rifle Last Messages --------------- GOAL=ESCAPE 25667_ Slug penetrates T8-1FT(S). 25667_ T8-1FT(S) destroyed. 25668_ Sneak attack on QK-37Z(S). 25668_ Destroyed Med. Treads. 25668_ Destroyed Neutrino Core. 25670_ Sneak attack on QK-37Z(S). 25670_ Destroyed Neutrino Core. 25672_ Sneak attack on QK-37Z(S). 25672_ QK-37Z(S) destroyed. 25675_ Acquired 50 matter. 25680_ -- NOTE: uh oh trouble west [A new version of Cogmind is available, see F1 News page.] 25715_ Penetrated by Slug. 25716_ Y-64 Sentinel: "INTERCEPTING UNREGISTERED DERELICT." 25716_ Adv. Terrain Scanner destroyed. 25720_ Dropped Huge Storage Unit. 25723_ Penetrated by Slug. 25731_ Acquired 9 matter. [A new version of Cogmind is available, see F1 News page.] Map ----- +----------------------------------------------------+ | ?????????????????????????????????????????????????? | | ?????????????????????????????????????????????????? | | ?????????????????????????????????????????????????? | | ?????????????????????????????????????????????????? | | ?????????????????????????????????????????????????? | | ?????????????????????????????????????????????????? | | ?????????????????????????????????????????????????? | | ?????????????????????????????????????????????????? | | ?????????????????????????????????????????????????? | | ??????????????????????????###?? ?????????????????? | | ?????????????????????????? "##? ?????????????????? | | ??????????????????????????"" ## #????????????????? | | ?????????????????????????##" "# #????????????????? | | ???????????????????????###" # #####????????????? | | ???????????????????????# # ###?####?????# | | ????????????????????????# #???## | | ????????????????????????# ##???????# ##### | | ????????????????????????## ##????????#$ | | ?????????????????????????## ##?####???# | | ??????????????????????????## ### ##??# | | ???????????????????????????# # ### ##?# | | ??????????????????????????## ## ### ### | | ??????????????????????????# # ## ## | | ?????????????????????????## *%! | | ???????????????????????### !%!# ##### | | ???????????????????????# @ ############ #??# | | ??????????????????? p #?????????# #?# # | | ???????????????? = ##?????????# #?# # | | ???????????? =[%### ##??????????# ##?## # | | ???????????# % ???#####???????????# #???# | | ???????????? ## ????????????????????# #???# | | ??????????????# ??????????????????????# #??? | | ?????????????# ???????????????????????# ??? | | ???????????????????????????????????????####??? # | | ?????????????????????????????????????????????##### | | ?????????????????????????????????????????????????? | | ?????????????????????????????????????????????????? | | ?????????????????????????????????????????????????? | | ?????????????????????????????????????????????????? | | ?????????????????????????????????????????????????? | | ?????????????????????????????????????????????????? | | ?????????????????????????????????????????????????? | | ?????????????????????????????????????????????????? | | ?????????????????????????????????????????????????? | | ?????????????????????????????????????????????????? | | ?????????????????????????????????????????????????? | | ?????????????????????????????????????????????????? | | ?????????????????????????????????????????????????? | | ?????????????????????????????????????????????????? | | ?????????????????????????????????????????????????? | +----------------------------------------------------+ Best States ------------- Heat Dissipation 57 Energy Generation 21 Energy Capacity 325 Matter Stores 300 Matter Capacity 300 Sight Range 16 Robot Scan Range 20 Terrain Scan Range 20 Terrain Scan Density 10 ECM Strength 3 EM Shielding 2 Armor Coverage 3200 Resistance: KI 20 Resistance: EX 90 Resistance: EM 90 Core Shielding 20 Propulsion Shielding 66 Evasion (%) 69 Targeting Accuracy 12 Core Analysis 8 Recoil Reduction 6 Offensive Hacking 10 Defensive Hacking 11 Authchip Count 1 Item Schematics ----------------- Huge Storage Unit | -9/Materials | Hacked Imp. Terrain Scanner | -9/Materials | Scanalyzed Transport Network Coupler | -9/Materials | Scanalyzed Seismic Detector | -9/Materials | Scanalyzed Arm. Wheel | -8/Materials | Scanalyzed Exp. Targeting Computer | -8/Materials | Scanalyzed Exp. Core Analyzer | -8/Materials | Scanalyzed Adv. Myomer Leg | -8/Materials | Scanalyzed Graphene Brace | -8/Materials | Scanalyzed Magnetic Acceleration Cannon | -7/Factory | Hacked Rocket Launcher | -7/Factory | Scanalyzed Mak. Ablative Armor | -6/Zion | Archive Lgt. Angular Momentum Engine | -6/Zion | Archive Hvy. Gauss Cannon | -6/Zion | Archive Imp. Force Field | -6/Zion | Archive Proton Cannon | -6/Zion | Archive Variable Charge Gun | -6/Zion | Archive Mak. Hover Unit | -6/Zion | Archive Mak. Trap Scanner | -6/Zion | Archive EM Disruption Field | -6/Zion | Archive Imp. Arc Projector | -6/Zion | Archive Focal Shield | -6/Zion | Archive Adv. Sensor Array | -6/Zion | Archive Imp. Weapon Cycler | -6/Zion | Archive Adv. Field Recycling Unit | -6/Zion | Archive 0b10 Decoder Chip [Skirmisher] | -6/Zion | Archive Hvy. Missile Launcher | -5/Factory | Hacked Adv. Power Amplifier | -5/Factory | Hacked Robot Schematics ------------------ R-10 Processor | -6/Zion | Archive H-88 Terminator | -6/Zion | Archive Fabricated ------------ Huge Storage Unit | x1 | -5/Factory Alien Tech Used ----------------- None Achievements -------------- None Challenges ------------ None Game ------ Seed CommBladeShockpuncher Manual? 0 Play Time 03:22:33 Cumulative 358.1 hours Start 2022.12.10 @ 11:56:41 End 2023.01.07 @ 18:30:54 Sessions 8 Manual Loads 0 Difficulty Rogue Special Mode None Game No. 166 Rogue 166 Adventurer 0 Explorer 0 Win Type - Total 8 Types 5/0/1/1/0/0/0/1/0 Lore% 88 Gallery% 92 Achievement% 70 Wizard Run 0 Options --------- ASCII 1 Keyboard 1 Movement Vi Keybinds 0 Fullscreen 2 Font 18/Cog Map View 76x50 Tactical HUD 1 Map Filters NONE Filters NONE Steam 0 RUN: d7ec8808-0755-4c23-981d-a5c30ac75453